bitfinex/quotes_SOLUSD_20220228
["timestamp","ask_amount","ask_price","bid_price","bid_amount"]
[1646088553835,182.33561356,100.05,99.888,2.74678921]
[1646088554033,78.6845,100.07,100.0,2000.0]
[1646088554234,81.69683438,100.07,100.0,2000.0]
[1646088555233,59.33,100.06,100.0,2000.0]
[1646088555433,62.09789451,100.06,100.0,2000.0]
[1646088557037,2.76789451,100.06,100.0,2000.0]
[1646088557238,62.3173239,100.07,100.0,2000.0]
[1646088557441,62.07678921,100.09,100.0,2000.0]
[1646088557637,129.01321309,100.1,100.0,2000.0]
[1646088558037,115.21244565,100.1,100.0,2000.0]
[1646088558238,117.95923486,100.1,100.0,2000.0]
[1646088558839,115.21244565,100.1,100.0,2000.0]
[1646088559859,115.21244565,100.1,100.01,97.7]
[1646088560066,115.21244565,100.1,100.0,2000.0]
[1646088560663,174.54244565,100.1,100.0,2000.0]
[1646088560861,115.21244565,100.1,100.0,2000.0]
[1646088561665,174.54244565,100.1,100.0,2000.0]
[1646088561863,174.04244565,100.1,100.0,2000.0]
[1646088562264,2.51244565,100.1,100.0,2000.0]
[1646088562462,61.69014365,100.11,100.0,2000.0]
[1646088563463,115.74790164,100.12,100.0,2097.7]
[1646088564064,115.74790164,100.12,100.0,2000.0]
[1646088564463,115.74790164,100.12,100.0,2097.7]
[1646088564965,115.74790164,100.12,100.0,2000.0]
[1646088566365,115.74790164,100.12,100.0,2097.7]
[1646088567365,115.74790164,100.12,100.0,2000.0]
[1646088567565,115.74790164,100.12,100.0,2097.7]
[1646088570068,59.33,100.11,100.0,2000.0]
[1646088570271,64.72703738,100.11,100.0,2000.0]
[1646088570470,162.42703738,100.11,100.0,2000.0]
[1646088570669,174.94479174,100.11,100.0,2000.0]
[1646088570868,2.74678921,100.1,100.0,2000.0]
[1646088577073,17.67604445,100.11,100.0,2000.0]
[1646088577574,20.42283366,100.11,100.0,2000.0]
[1646088577776,118.12283366,100.11,100.0,2000.0]
[1646088578173,59.33,100.1,100.0,2000.0]
[1646088578673,65.10186466,100.1,100.0,2000.0]
[1646088578875,162.80186466,100.1,100.0,2000.0]
[1646088579074,65.10186466,100.1,100.0,2000.0]
[1646088580173,162.80186466,100.1,100.0,2000.0]
[1646088580777,65.10186466,100.1,100.0,2000.0]
[1646088581476,162.80186466,100.1,100.0,2000.0]
[1646088582577,174.71295235,100.1,100.0,2000.0]
[1646088586286,77.01295235,100.1,100.0,2000.0]
[1646088586482,65.10186466,100.1,100.0,2000.0]
[1646088587283,5.77186466,100.1,100.0,2000.0]
[1646088587484,2.74678921,100.1,100.0,2000.0]
[1646088588184,5.76976886,100.1,100.0,2000.0]
[1646088588381,175.64726866,100.12,100.0,2097.7]
[1646088588584,174.3436123,100.12,100.0,2000.0]
[1646088588782,177.09040151,100.12,100.0,2000.0]
[1646088589880,178.39405787,100.12,100.0,2000.0]
[1646088590885,157.03,100.1,100.0,2000.0]
[1646088591086,160.62861921,100.1,100.0,2000.0]
[1646088591288,2.74189293,100.09,100.0,2000.0]
[1646088591687,4.04554929,100.09,100.0,2000.0]
[1646088592087,1.30365636,100.09,100.0,2000.0]
[1646088592289,2.74678921,100.08,100.0,2000.0]
[1646088593789,62.92861921,100.1,100.0,2000.0]
[1646088594190,64.37175206,100.1,100.0,2000.0]
[1646088595491,5.04175206,100.1,100.0,2000.0]
[1646088595692,2.74678921,100.1,100.0,2000.0]
[1646088595896,17.95215349,100.11,100.0,2000.0]
[1646088596895,17.95215349,100.11,100.0,2002.74678921]
[1646088597294,15.0449,100.11,100.0,2002.74678921]
[1646088597498,17.48169256,100.11,100.0,2000.0]
[1646088597699,20.22358549,100.11,100.0,2000.0]
[1646088598097,59.33,100.1,100.0,2000.0]
[1646088598297,2.41757441,100.1,100.0,2000.0]
[1646088598499,2.74678921,100.09,100.0,2000.0]
[1646088598698,4.05044557,100.09,100.0,2000.0]
[1646088599097,2.74678921,100.08,100.0,2000.0]
[1646088599705,4.05044557,100.08,100.0,2000.0]
[1646088600105,2.74678921,100.07,100.0,2000.0]
[1646088601324,115.44678921,100.07,100.0,2000.0]
[1646088601525,117.85273676,100.07,100.0,2000.0]
[1646088601727,2.74678921,100.06,100.0,2000.0]
[1646088602729,115.10594755,100.07,100.0,2000.0]
[1646088602931,112.7,100.07,100.0,2000.0]
[1646088606237,115.6998299,100.07,100.0,2000.0]
[1646088606437,112.7,100.07,100.0,2000.0]
[1646088609341,112.7,100.07,100.0,2097.7]
[1646088609543,78.962,100.07,100.0,2097.7]
[1646088610545,112.7,100.1,100.0,2097.7]
[1646088610748,115.04625254,100.1,100.0,2097.7]
[1646088610946,115.04625254,100.1,100.0,2096.2]
[1646088611767,112.7,100.1,100.0,2096.2]
[1646088611967,112.7,100.1,100.01,2.74678921]
[1646088613774,1.30365636,100.13,100.0,2096.2]
[1646088613973,60.63365636,100.13,100.0,2096.2]
[1646088614172,63.61578582,100.13,100.0,2096.2]
[1646088614371,2.74678921,100.12,100.0,2096.2]
[1646088614971,2.74678921,100.12,100.0,1998.5]
[1646088615375,2.74678921,100.12,100.0,1997.5]
[1646088615572,4.05044557,100.12,100.0,1997.5]
[1646088615974,4.28578582,100.13,100.0,1997.5]
[1646088616172,2.74678921,100.12,100.0,1997.5]
[1646088616774,4.05044557,100.12,100.0,1997.5]
[1646088617575,4.05044557,100.12,100.0,2095.2]
[1646088618276,117.08526894,100.14,100.0,2097.94678921]
[1646088618474,115.78161258,100.14,100.0,2000.24678921]
[1646088618676,59.33,100.13,100.0,2000.24678921]
[1646088618876,62.04142741,100.13,100.0,1997.5]
[1646088619081,2.74189293,100.12,100.0,1997.5]
[1646088619275,2.74189293,100.12,100.01,2.74678921]
[1646088619475,59.33,100.13,100.01,2.74678921]
[1646088619676,159.83403685,100.13,100.0,1997.5]
[1646088619876,2.74678921,100.12,100.0,1997.5]
[1646088620278,112.7,100.1,100.0,1997.5]
[1646088620477,115.66249206,100.1,100.0,1997.5]
[1646088620776,118.40928127,100.1,100.0,1997.5]
[1646088621582,59.33,100.09,100.0,1997.5]
[1646088621780,160.02487359,100.09,100.0,1997.5]
[1646088621981,2.74678921,100.08,100.0,1997.5]
[1646088627883,174.95311616,100.1,100.0,1997.5]
[1646088628181,2.71252307,100.09,100.0,1997.5]
[1646088628382,115.62311616,100.1,100.0,1997.5]
[1646088628781,159.95311616,100.1,100.0,1997.5]
[1646088628982,75.88313396,100.1,100.0,1997.5]
[1646088629182,2.74678921,100.09,100.0,1997.5]
[1646088629984,100.44678921,100.09,100.0,1997.5]
[1646088630183,62.04062312,100.08,100.0,1997.5]
[1646088630384,64.78251605,100.08,100.0,1997.5]
[1646088630783,2.74678921,100.07,100.0,1997.5]
[1646088632487,77.1906227,100.11,100.0,1997.5]
[1646088632687,2.74189293,100.09,100.0,1997.5]
[1646088633087,2.74189293,100.09,100.0,2095.2]
[1646088633689,16.55696634,100.11,100.0,1997.5]
[1646088633891,19.26948941,100.11,100.0,2095.2]
[1646088634089,19.26948941,100.11,100.0,1997.5]
[1646088634690,19.26948941,100.11,100.0,2095.2]
[1646088635591,19.26948941,100.11,100.0,2109.9143]
[1646088636290,19.26948941,100.11,100.0,2012.2143]
[1646088636894,19.26948941,100.11,100.0,2109.9143]
[1646088637097,2.71252307,100.11,100.0,2109.9143]
[1646088637895,2.71252307,100.11,100.0,2012.2143]
[1646088638296,2.71252307,100.11,100.0,2109.9143]
[1646088638899,2.71252307,100.11,100.0,2012.2143]
[1646088640097,2.71252307,100.11,100.01,97.7]
[1646088640298,2.71252307,100.11,100.0,2012.2143]
[1646088641300,2.71252307,100.11,100.0,2109.9143]
[1646088644805,2.74189293,100.13,100.0,2109.9143]
[1646088647508,17.43519293,100.13,100.0,2109.9143]
[1646088647808,16.9647656,100.13,100.02,97.7]
[1646088648207,16.9647656,100.13,100.02,100.44678921]
[1646088648607,16.9647656,100.13,100.02,97.7]
[1646088648811,16.9647656,100.13,100.02,100.44678921]
[1646088649008,17.3856853,100.16,100.02,100.44678921]
[1646088649208,17.3856853,100.16,100.02,148.33208921]
[1646088650313,79.42331209,100.16,100.02,61.72488626]
[1646088650515,79.42331209,100.16,100.02,47.8853]
[1646088651413,61.79113648,100.14,100.02,47.8853]
[1646088651813,2.74678921,100.13,100.02,47.8853]
[1646088652216,59.33,100.12,100.02,47.8853]
[1646088652417,62.01483246,100.12,100.02,47.8853]
[1646088652617,2.74678921,100.11,100.02,47.8853]
[1646088656239,2.74678921,100.11,100.0,2020.8984]
[1646088656439,157.03,100.1,100.0,1997.5]
[1646088656641,159.54511272,100.1,100.0,1997.5]
[1646088656838,59.33,100.08,100.0,1997.5]
[1646088657041,62.22485682,100.08,100.0,1997.5]
[1646088657543,2.74678921,100.07,100.0,1997.5]
[1646088660142,59.33,100.06,100.0,1997.5]
[1646088660341,62.20500601,100.06,100.0,1997.5]
[1646088660545,2.70762679,100.05,100.0,1997.5]
[1646088683586,114.47886546,99.779,99.624,0.50169313]
[1646088683784,6.70559058,99.778,99.624,0.50169313]
[1646088684083,2.43055786,99.777,99.624,0.50169313]
[1646088684482,4.011,99.776,99.624,0.50169313]
[1646088685183,25.10201393,99.775,99.624,0.50169313]
[1646088685381,7.04133258,99.774,99.624,0.50169313]
[1646088685784,5.34323012,99.774,99.624,0.50169313]
[1646088686383,25.86230857,99.773,99.625,18.82759959]
[1646088686582,2.69295975,99.772,99.625,18.82759959]
[1646088686804,6.81259096,99.771,99.624,0.50169313]
[1646088687287,3.46770602,99.771,99.624,0.50169313]
[1646088687583,3.02359008,99.769,99.624,0.50169313]
[1646088687784,100.72359008,99.769,99.624,0.50169313]
[1646088687986,97.7,99.767,99.624,0.50169313]
[1646088688183,97.7,99.765,99.624,0.50169313]
[1646088688382,97.7,99.763,99.624,0.50169313]
[1646088688582,97.7,99.761,99.624,0.50169313]
[1646088688786,97.7,99.759,99.624,0.50169313]
[1646088689083,6.49838075,99.76,99.624,0.50169313]
[1646088689084,4.011,99.758,99.624,0.50169313]
[1646088689284,0.66611506,99.758,99.624,0.50169313]
[1646088689482,1.33223012,99.757,99.624,0.50169313]
[1646088689684,5.84,99.749,99.624,0.50169313]
[1646088689884,0.84,99.729,99.624,0.50169313]
[1646088690183,40.42709131,99.757,99.624,0.50169313]
[1646088690184,4.011,99.728,99.624,0.50169313]
[1646088690383,0.66611506,99.728,99.624,0.50169313]
[1646088690584,2.41694024,99.727,99.624,0.50169313]
[1646088690783,43.455086,99.727,99.624,0.50169313]
[1646088690984,4.013,99.756,99.624,0.50169313]
[1646088690985,59.33,99.724,99.624,0.50169313]
[1646088691187,2.32504698,99.718,99.624,0.50169313]
[1646088691393,4.013,99.717,99.624,0.50169313]
[1646088691685,97.7,99.716,99.624,0.50169313]
[1646088691885,2.67648889,99.715,99.624,0.50169313]
[1646088692284,2.71878392,99.714,99.624,0.50169313]
[1646088692485,2.67240501,99.712,99.624,0.50169313]
[1646088693285,2.38743828,99.71,99.624,0.50169313]
[1646088693488,4.013,99.709,99.624,0.50169313]
[1646088693686,2.48374918,99.708,99.624,0.50169313]
[1646088693888,24.06899384,99.708,99.624,0.50169313]
[1646088694086,2.48185235,99.707,99.624,0.50169313]
[1646088694307,2.74677038,99.706,99.624,0.50169313]
[1646088694489,2.29857289,99.705,99.624,0.50169313]
[1646088694887,2.99038899,99.703,99.624,0.50169313]
[1646088695088,4.013,99.702,99.624,0.50169313]
[1646088695289,100.75692286,99.701,99.624,0.50169313]
[1646088695488,2.68714341,99.698,99.624,0.50169313]
[1646088695688,4.013,99.697,99.624,0.50169313]
[1646088695888,4.013,99.697,99.624,9.313e-05]
[1646088695889,157.87,99.679,99.624,9.313e-05]
[1646088696090,4.013,99.678,99.624,9.313e-05]
[1646088696289,157.03,99.677,99.624,9.313e-05]
[1646088696592,157.03,99.668,99.608,403.39327045]
[1646088696791,2.47474995,99.665,99.608,403.39327045]
[1646088697089,2.33869191,99.657,99.608,403.39327045]
[1646088697289,4.014,99.656,99.608,347.70547045]
[1646088697488,157.03,99.655,99.608,347.70547045]
[1646088697691,97.7,99.653,99.608,347.70547045]
[1646088697989,97.7,99.651,99.608,347.70547045]
[1646088698189,97.7,99.649,99.608,347.70547045]
[1646088698389,97.7,99.645,99.608,347.70547045]
[1646088698588,16.83040896,99.648,99.608,347.70547045]
[1646088698788,3.05058489,99.643,99.608,347.70547045]
[1646088699293,2.51101474,99.641,99.608,347.70547045]
[1646088699689,28.49040119,99.64,99.608,347.70547045]
[1646088699889,2.69533299,99.639,99.608,347.70547045]
[1646088700290,2.58374102,99.661,99.608,347.70547045]
[1646088700492,6.82487318,99.64,99.608,347.70547045]
[1646088700990,4.014,99.639,99.608,347.70547045]
[1646088701590,6.89013749,99.639,99.608,347.70547045]
[1646088701817,2.59407901,99.638,99.608,347.70547045]
[1646088701991,2.514,99.637,99.608,347.70547045]
[1646088702193,31.00440119,99.637,99.608,347.70547045]
[1646088702392,2.78304379,99.636,99.608,347.70547045]
[1646088702593,28.49040119,99.636,99.608,347.70547045]
[1646088702893,22.41358221,99.635,99.608,347.70547045]
[1646088703092,7.13764434,99.634,99.608,347.70547045]
[1646088703294,13.92666095,99.634,99.608,347.70547045]
[1646088703493,3.0607319,99.632,99.608,347.70547045]
[1646088703693,97.7,99.63,99.608,347.70547045]
[1646088703893,2.95017995,99.629,99.608,347.70547045]
[1646088704092,3.02761791,99.626,99.608,347.70547045]
[1646088704395,97.7,99.624,99.608,347.70547045]
[1646088704594,2.97421755,99.623,99.608,347.70547045]
[1646088704997,105.68066982,99.622,99.608,347.70547045]
[1646088705199,2.97408192,99.621,99.608,347.70547045]
[1646088705399,97.7,99.619,99.608,347.70547045]
[1646088705599,97.7,99.617,99.608,347.70547045]
[1646088705802,2.48589332,99.616,99.608,332.86247045]
[1646088705998,97.7,99.615,99.608,332.86247045]
[1646088706199,97.7,99.613,99.608,332.86247045]
[1646088706498,2.49239469,99.612,99.608,159.80247045]
[1646088706699,97.7,99.611,99.608,3.42677045]
[1646088706901,0.00913657,99.497,99.466,46.3375]
[1646088707100,0.00913657,99.497,99.205,40.71294079]
[1646088707302,0.00913657,99.497,99.383,155.3686]
[1646088707499,0.00913657,99.497,99.383,154.8686]
[1646088708503,59.33,99.496,99.327,24.399]
[1646088708705,3.12450744,99.495,99.327,24.399]
[1646088709102,28.38955808,99.494,99.327,23.899]
[1646088709318,3.0289783,99.493,99.328,2.74678921]
[1646088709722,0.00913657,99.497,99.33,97.7]
[1646088709923,4.022,99.534,99.336,97.7]
[1646088710122,0.002,99.534,99.361,156.03]
[1646088710324,4.022,99.546,99.364,2.1085907]
[1646088710522,0.002,99.546,99.366,156.03]
[1646088710724,2.33925708,99.608,99.367,2.14478825]
[1646088710924,1.84142612,99.617,99.382,60.37182886]
[1646088711123,97.7,99.648,99.392,1.82415283]
[1646088711326,2.34032071,99.647,99.395,2.04130832]
[1646088711523,2.34032071,99.647,99.402,2.45923025]
[1646088711524,2.09413436,99.645,99.402,2.45923025]
[1646088711723,4.019,99.644,99.402,2.45923025]
[1646088711924,59.33,99.641,99.411,1.94175102]
[1646088712126,59.33,99.633,99.404,2.23780682]
[1646088712324,97.7,99.618,99.412,50.17875732]
[1646088712526,1.99566492,99.617,99.413,2.46409263]
[1646088712724,1.99566492,99.617,99.413,21.65924929]
[1646088712924,6.01466492,99.617,99.414,23.7372998]
[1646088713126,97.7,99.612,99.414,50.17875732]
[1646088713327,2.41306344,99.607,99.415,1.80365876]
[1646088713527,2.41306344,99.607,99.415,2.74678921]
[1646088713827,2.41306344,99.607,99.404,1.88710487]
[1646088713828,2.41306344,99.607,99.416,2.74678921]
[1646088714028,4.019,99.611,99.416,19.92591595]
[1646088714231,4.019,99.606,99.417,19.06719846]
[1646088714428,4.019,99.606,99.418,99.69873005]
[1646088714635,4.019,99.606,99.419,122.17225477]
[1646088714828,4.019,99.61,99.42,2.17745829]
[1646088715230,4.019,99.605,99.421,4.97040195]
[1646088715430,4.019,99.605,99.421,22.12699536]
[1646088715631,0.84,99.639,99.422,148.4784465]
[1646088715831,0.84,99.639,99.423,2.46829724]
[1646088716032,4.019,99.609,99.43,97.7]
[1646088716233,4.019,99.645,99.436,97.7]
[1646088716434,4.017,99.638,99.437,61.24065028]
[1646088716632,4.017,99.638,99.459,59.33]
[1646088716831,4.017,99.638,99.438,48.2657]
[1646088716832,4.019,99.645,99.471,1.9769823]
[1646088717032,4.017,99.657,99.46,28.51950803]
[1646088717238,4.017,99.657,99.461,122.5169]
[1646088717432,4.017,99.644,99.473,97.7]
[1646088717637,4.017,99.656,99.474,1.87010687]
[1646088717835,4.017,99.656,99.476,97.7]
[1646088718034,4.017,99.665,99.477,2.08618101]
[1646088718234,1.93567022,99.666,99.477,2.08618101]
[1646088718435,1.93567022,99.666,99.478,2.74678921]
[1646088718636,1.93567022,99.666,99.497,59.33]
[1646088718834,1.93567022,99.666,99.501,2.24639746]
[1646088719234,1.93567022,99.666,99.502,97.7]
[1646088719435,1.93567022,99.666,99.503,2.12667042]
[1646088719836,1.93567022,99.666,99.504,97.7]
[1646088720036,1.93567022,99.666,99.505,2.04950759]
[1646088720238,1.93567022,99.666,99.498,22.8667]
[1646088720239,97.7,99.659,99.499,77.3219]
[1646088720438,2.23471302,99.658,99.499,79.35342479]
[1646088720636,4.016,99.657,99.499,79.35342479]
[1646088721037,2.05833119,99.666,99.5,2.35458171]
[1646088721236,2.05833119,99.666,99.5,100.05458171]
[1646088721439,2.05833119,99.666,99.502,97.7]
[1646088721637,2.05833119,99.666,99.503,2.28224706]
[1646088721839,2.05833119,99.666,99.503,19.43884047]
[1646088722037,2.05833119,99.666,99.504,19.43082505]
[1646088722239,2.05833119,99.666,99.505,2.23896714]
[1646088722441,2.05833119,99.666,99.646,7.511]
[1646088723039,2.05833119,99.666,99.579,6.888]
[1646088723440,2.05833119,99.666,99.532,1.95419015]
[1646088723739,2.05833119,99.666,99.531,71.1307]
[1646088724338,2.05833119,99.666,99.532,1.92226561]
[1646088724839,2.05833119,99.666,99.531,71.1307]
[1646088725440,4.016,99.704,99.532,22.22282871]
[1646088725640,2.19857477,99.701,99.533,2.08533913]
[1646088725841,2.39760293,99.72,99.534,2.32557584]
[1646088726041,2.39760293,99.72,99.535,4.014]
[1646088726241,4.014,99.719,99.535,30.78830828]
[1646088726543,4.014,99.719,99.536,17.15659341]
[1646088726740,4.014,99.719,99.537,2.15106859]
[1646088726941,2.39760293,99.72,99.538,4.014]
[1646088727141,2.39760293,99.72,99.539,1.91963125]
[1646088727341,2.39760293,99.72,99.54,4.014]
[1646088727543,4.014,99.719,99.539,50.3425219]
[1646088727743,4.014,99.719,99.541,28.51950803]
[1646088728144,4.014,99.719,99.54,2.74678921]
[1646088728545,2.0492951,99.717,99.54,2.74678921]
[1646088728846,112.7,99.67,99.54,2.74678921]
[1646088729046,1.90328563,99.669,99.54,2.74678921]
[1646088731045,1.40328563,99.669,99.54,2.74678921]
[1646088731448,1.40328563,99.669,99.531,71.1307]
[1646088731645,99.10328563,99.669,99.531,71.1307]
[1646088731844,97.7,99.669,99.531,71.1307]
[1646088732044,1.74504035,99.668,99.531,71.1307]
[1646088733246,59.33,99.654,99.531,71.1307]
[1646088733450,112.7,99.626,99.531,71.1307]
[1646088733648,99.7438703,99.625,99.531,71.1307]
[1646088733848,2.03700863,99.624,99.531,71.1307]
[1646088734047,2.03700863,99.624,99.531,70.6307]
[1646088734048,97.7,99.619,99.531,70.6307]
[1646088734247,2.28660635,99.618,99.531,70.1307]
[1646088734448,2.18573284,99.625,99.531,70.1307]
[1646088734648,99.88573284,99.625,99.531,70.1307]
[1646088734849,2.31025271,99.624,99.531,70.1307]
[1646088738950,112.7,99.626,99.531,70.1307]
[1646088739150,97.7,99.663,99.531,70.1307]
[1646088739349,4.016,99.647,99.531,70.1307]
[1646088739549,112.7,99.623,99.531,70.1307]
[1646088739751,2.20271306,99.622,99.531,70.1307]
[1646088742950,99.59195596,99.649,99.531,70.1307]
[1646088743154,2.05690955,99.648,99.531,70.1307]
[1646088743953,97.7,99.659,99.531,70.1307]
[1646088744150,59.33,99.656,99.531,70.1307]
[1646088744351,1.79071543,99.648,99.531,70.1307]
[1646088744551,2.32010156,99.638,99.531,70.1307]
[1646088744752,4.016,99.637,99.531,70.1307]
[1646088745153,2.0710086,99.636,99.531,70.1307]
[1646088745755,2.14969887,99.654,99.531,70.1307]
[1646088747254,1.93297777,99.652,99.531,70.1307]
[1646088747454,2.04089854,99.651,99.531,70.1307]
[1646088747655,63.346,99.65,99.531,70.1307]
[1646088747854,97.7,99.639,99.531,70.1307]
[1646088748054,2.30321527,99.638,99.531,70.1307]
[1646088748454,97.7,99.636,99.531,70.1307]
[1646088748654,97.7,99.628,99.531,70.1307]
[1646088748856,2.29212493,99.627,99.531,70.1307]
[1646088749254,97.7,99.624,99.531,70.1307]
[1646088749453,1.9183909,99.623,99.531,70.1307]
[1646088750054,99.54007959,99.636,99.531,70.1307]
[1646088750256,2.04163823,99.635,99.531,70.1307]
[1646088750457,2.09201347,99.633,99.531,70.1307]
[1646088750755,4.016,99.632,99.531,70.1307]
[1646088751157,157.03,99.65,99.494,2.74678921]
[1646088751355,6.20932778,99.649,99.464,59.33]
[1646088751557,2.01409394,99.647,99.475,117.8121]
[1646088751755,2.01409394,99.647,99.475,120.55888921]
[1646088752155,4.017,99.646,99.476,97.7]
[1646088752354,2.14079026,99.645,99.476,97.7]
[1646088752557,4.017,99.644,99.48,97.7]
[1646088752755,2.14079026,99.645,99.48,97.7]
[1646088752958,2.14079026,99.645,99.49,97.7]
[1646088753156,99.41341119,99.643,99.491,47.5378]
[1646088753462,1.7106758,99.642,99.491,47.5378]
[1646088753656,1.7106758,99.642,99.492,2.74678921]
[1646088753856,1.7106758,99.642,99.491,47.5378]
[1646088754057,4.017,99.641,99.491,47.5378]
[1646088754258,97.7,99.638,99.491,47.5378]
[1646088754558,97.7,99.63,99.491,47.5378]
[1646088754761,61.53509287,99.629,99.491,47.5378]
[1646088755058,2.07514227,99.636,99.491,47.5378]
[1646088755260,2.04772675,99.635,99.491,47.5378]
[1646088755460,4.017,99.634,99.491,47.5378]
[1646088755660,97.7,99.628,99.491,47.5378]
[1646088755861,2.04335148,99.627,99.491,47.5378]
[1646088756260,97.7,99.618,99.491,47.5378]
[1646088756462,1.76713711,99.617,99.491,47.5378]
[1646088758485,59.33,99.609,99.491,47.5378]
[1646088758691,97.7,99.598,99.491,47.5378]
[1646088758984,1.77153452,99.595,99.491,47.5378]
[1646088759185,4.017,99.594,99.491,47.5378]
[1646088759387,97.7,99.593,99.475,22.8702]
[1646088759585,97.7,99.591,99.475,22.8702]
[1646088759786,97.7,99.589,99.475,22.8702]
[1646088759988,4.017,99.588,99.475,22.8702]
[1646088760188,2.26737143,99.586,99.475,22.8702]
[1646088760391,59.33,99.582,99.475,22.8702]
[1646088760591,59.33,99.574,99.475,22.8702]
[1646088760790,157.03,99.559,99.442,48.395]
[1646088760988,1.87195052,99.558,99.442,48.395]
[1646088761191,157.03,99.557,99.442,48.395]
[1646088761389,1.77031305,99.556,99.442,48.395]
[1646088761591,1.77031305,99.556,99.413,24.1566]
[1646088761787,157.03,99.548,99.413,24.1566]
[1646088761988,1.80319758,99.547,99.413,24.1566]
[1646088762189,157.03,99.528,99.413,24.1566]
[1646088762387,1.64066672,99.527,99.369,23.3878]
[1646088762597,1.64066672,99.527,99.37,47.4505]
[1646088762788,157.03,99.518,99.37,47.4505]
[1646088762992,1.68736284,99.517,99.37,47.4505]
[1646088763389,2.18832184,99.515,99.37,47.4505]
[1646088763793,157.03,99.513,99.33,4.022]
[1646088763988,0.84,99.489,99.293,72.764]
[1646088764190,1.69568432,99.487,99.293,72.764]
[1646088764390,4.022,99.486,99.299,4.022]
[1646088764588,0.84,99.479,99.299,4.022]
[1646088764789,4.022,99.478,99.299,4.022]
[1646088764988,0.84,99.469,99.299,15.2521]
[1646088765191,157.03,99.458,99.299,15.2521]
[1646088765390,5.84,99.439,99.293,72.764]
[1646088765689,2.21712642,99.437,99.293,72.764]
[1646088765889,4.025,99.436,99.225,4.025]
[1646088766090,0.84,99.399,99.232,14.7301]
[1646088766293,101.725,99.398,99.233,24.3939]
[1646088766490,1.66807813,99.397,99.233,24.3939]
[1646088766691,4.025,99.396,99.233,24.3939]
[1646088766893,103.54039928,99.396,99.233,24.3939]
[1646088767092,97.7,99.394,99.233,24.3939]
[1646088767292,97.7,99.392,99.233,24.3939]
[1646088767492,99.86066013,99.388,99.233,24.3939]
[1646088767694,59.33,99.375,99.298,4.022e-05]
[1646088767901,1.88794731,99.387,99.298,4.022e-05]
[1646088767902,97.7,99.358,99.298,4.022e-05]
[1646088768094,97.7,99.348,99.298,4.022e-05]
[1646088768294,1.64534451,99.347,99.298,4.022e-05]
[1646088768494,99.55901798,99.346,99.298,4.022e-05]
[1646088768695,2.23944377,99.345,99.298,4.022e-05]
[1646088769098,61.93667353,99.344,99.298,4.022e-05]
[1646088769295,1.66507962,99.343,99.298,4.022e-05]
[1646088769497,47.23891777,99.343,99.298,4.022e-05]
[1646088769697,64.18230968,99.342,99.298,4.022e-05]
[1646088769897,2.07948631,99.341,99.298,4.022e-05]
[1646088770099,2.17202116,99.372,99.298,4.022e-05]
[1646088770298,4.027,99.342,99.298,4.022e-05]
[1646088770699,1.92507964,99.37,99.298,4.022e-05]
[1646088771099,29.69894549,99.369,99.298,4.022e-05]
[1646088771300,1.96338153,99.368,99.298,4.022e-05]
[1646088771601,30.98204957,99.368,99.298,4.022e-05]
[1646088771801,2.17177233,99.367,99.298,4.022e-05]
[1646088772302,5.0,99.338,99.298,4.022e-05]
[1646088772503,157.03,99.347,99.298,4.022e-05]
[1646088772703,97.7,99.336,99.298,4.022e-05]
[1646088772902,59.33,99.329,99.298,4.022e-05]
[1646088773102,96.7,99.324,99.182,4.025]
[1646088773303,59.33,99.307,99.183,4.025]
[1646088773503,96.7,99.288,99.121,172.5977]
[1646088773703,96.7,99.278,99.121,172.5977]
[1646088773903,2.26466679,99.279,99.121,172.5977]
[1646088774104,0.84,99.328,99.121,172.5977]
[1646088774303,4.03,99.338,99.148,2.74678921]
[1646088774503,10.5106198,99.345,99.149,26.8435]
[1646088774704,13.93247604,99.337,99.149,26.8435]
[1646088774903,2.02294857,99.336,99.149,26.8435]
[1646088775104,4.029,99.335,99.18,0.46]
[1646088775604,6.27759687,99.335,99.18,0.46]
[1646088775803,2.00458945,99.333,99.18,0.46]
[1646088776003,4.029,99.332,99.18,0.46]
[1646088776205,1.70233088,99.331,99.18,2.65825216]